fUSD/lending_fUSD_20241015
["ID","MTS","AMOUNT","RATE_DAILY","PERIOD"]
[340310274,1729020674832,-500.0,0.00024931,7]
[340310275,1729020674843,-500.0,0.00024931,7]
[340310276,1729020674852,-500.0,0.00024931,7]
[340310277,1729020674861,-556.76,0.00024931,7]
[340310278,1729020674871,-500.0,0.00024931,7]
[340310279,1729020674881,-500.0,0.00024931,7]
[340310280,1729020674891,-556.76,0.00024931,7]
[340310281,1729020674900,-556.76,0.00024931,7]
[340310282,1729020674910,-632.28,0.00024931,7]
[340310283,1729020674919,-556.76,0.00024931,7]
[340310284,1729020674929,-539.63631261,0.00024931,7]
[340310285,1729020674939,-500.88239995,0.00024931,7]
[340310286,1729020674948,-556.76,0.00024931,7]
[340310287,1729020674958,-556.76,0.00024931,7]
[340310288,1729020674968,-556.76,0.00024931,7]
[340310289,1729020674977,-500.0,0.00024931,7]
[340310290,1729020674987,-400.51264823,0.00024931,7]
[340310291,1729020674996,-556.76,0.00024931,7]
[340310292,1729020675006,-503.94449464,0.00024931,7]
[340310293,1729020675016,-556.76,0.00024931,7]
[340310294,1729020675025,-556.76,0.00024931,7]
[340310295,1729020675035,-216.91594452,0.00024931,7]
[340310296,1729020675044,-500.0,0.00024931,7]
[340310297,1729020675054,-556.76,0.00024931,7]
[340310298,1729020675063,-500.0,0.00024931,7]
[340310299,1729020675074,-787.23,0.00024931,7]
[340310300,1729020675085,-556.76,0.00024931,7]
[340310301,1729020675094,-500.0,0.00024931,7]
[340310302,1729020675104,-556.76,0.00024931,7]
[340310303,1729020675115,-500.0,0.00024931,7]
[340310304,1729020675125,-787.23,0.00024931,7]
[340310305,1729020675135,-556.76,0.00024931,7]
[340310306,1729020675146,-500.0,0.00024931,7]
[340310307,1729020675156,-787.23,0.00024931,7]
[340310308,1729020675165,-556.76,0.00024931,7]
[340310309,1729020675175,-500.0,0.00024931,7]
[340310310,1729020675184,-787.23,0.00024931,7]
[340310311,1729020675193,-500.0,0.00024931,7]
[340310312,1729020675203,-787.23,0.00024931,7]
[340310313,1729020675212,-556.76,0.00024931,7]
[340310314,1729020675313,-500.0,0.00024931,7]
[340310315,1729020675323,-787.23,0.00024931,7]
[340310316,1729020675332,-500.0,0.00024931,7]
[340310317,1729020675343,-556.76,0.00024931,7]
[340310318,1729020675352,-500.0,0.00024931,7]
[340310319,1729020675362,-787.23,0.00024931,7]
[340310320,1729020675371,-500.0,0.00024931,7]
[340310321,1729020675382,-556.76,0.00024931,7]
[340310322,1729020675392,-500.0,0.00024931,7]
[340310323,1729020675401,-787.23,0.00024931,7]
[340310324,1729020675415,-556.76,0.00024931,7]
[340310325,1729020675425,-500.0,0.00024931,7]
[340310326,1729020675435,-500.0,0.00024931,7]
[340310327,1729020675445,-787.23,0.00024931,7]
[340310328,1729020675456,-556.96,0.00024931,7]
[340310329,1729020675466,-509.15866571,0.00024931,7]
[340310330,1729020675476,-500.00000001,0.00024931,7]
[340310331,1729020675486,-787.23,0.00024931,7]
[340310332,1729020675498,-787.23,0.00024931,7]
[340310333,1729020675509,-151.0,0.00024931,7]
[340310334,1729020675518,-151.0,0.00024931,7]
[340310335,1729020675528,-787.23,0.00024931,7]
[340310336,1729020675538,-239.167581,0.00024931,7]
[340310337,1729020675548,-787.23,0.00024931,7]
[340310338,1729020675557,-787.23,0.00024931,7]
[340310339,1729020675567,-787.23,0.00024931,7]
[340310340,1729020675576,-787.23,0.00024931,7]
[340310341,1729020675587,-582.94,0.00024931,7]
[340310342,1729020675597,-787.23,0.00024931,7]
[340310343,1729020675606,-582.94,0.00024931,7]
[340310344,1729020675615,-500.0,0.00024931,7]
[340310345,1729020675625,-787.23,0.00024931,7]
[340310346,1729020675635,-582.94,0.00024931,7]
[340310347,1729020675645,-787.23,0.00024931,7]
[340310348,1729020675654,-582.94,0.00024931,7]
[340310349,1729020675663,-500.0,0.00024931,7]
[340310350,1729020675673,-787.23,0.00024931,7]
[340310351,1729020675683,-582.94,0.00024931,7]
[340310352,1729020675693,-500.0,0.00024931,7]
[340310353,1729020675704,-787.23,0.00024931,7]
[340310354,1729020675715,-582.94,0.00024931,7]
[340310355,1729020675725,-500.0,0.00024931,7]
[340310356,1729020675737,-582.94,0.00024931,7]
[340310357,1729020675748,-787.23,0.00024931,7]
[340310358,1729020675759,-500.0,0.00024931,7]
[340310359,1729020675769,-500.0,0.00024931,7]
[340310360,1729020675779,-582.94,0.00024931,7]
[340310361,1729020675789,-787.23,0.00024931,7]
[340310362,1729020675798,-500.0,0.00024931,7]
[340310363,1729020675808,-500.0,0.00024931,7]
[340310364,1729020675818,-500.0,0.00024931,7]
[340310365,1729020675828,-787.32500017,0.00024931,7]
[340310366,1729020675840,-500.0,0.00024931,7]
[340310367,1729020675851,-500.0,0.00024931,7]
[340310368,1729020675861,-500.0,0.00024931,7]
[340310369,1729020675871,-500.0,0.00024931,7]
[340310370,1729020675880,-500.0,0.00024931,7]
[340310371,1729020675891,-500.0,0.00024931,7]
[340310372,1729020675901,-500.0,0.00024931,7]
[340310373,1729020675911,-500.0,0.00024931,7]
[340310374,1729020675921,-500.0,0.00024931,7]
[340310375,1729020675931,-500.0,0.00024931,7]
[340310376,1729020675941,-500.0,0.00024931,7]
[340310377,1729020675950,-500.0,0.00024931,7]
[340310378,1729020675960,-500.0,0.00024931,7]
[340310379,1729020675971,-500.0,0.00024931,7]
[340310380,1729020675980,-500.0,0.00024931,7]
[340310381,1729020675990,-391.66033046,0.00024931,7]
[340310382,1729020676000,-582.94,0.00024931,7]
[340310383,1729020676009,-582.94,0.00024931,7]
[340310384,1729020676019,-582.94,0.00024931,7]
[340310385,1729020676028,-582.94,0.00024931,7]
[340310386,1729020676038,-582.94,0.00024931,7]
[340310387,1729020676047,-582.94,0.00024931,7]
[340310388,1729020676057,-500.0,0.00024931,7]
[340310389,1729020676066,-582.94,0.00024931,7]
[340310390,1729020676075,-500.0,0.00024931,7]
[340310391,1729020676084,-582.94,0.00024931,7]
[340310392,1729020676097,-500.0,0.00024931,7]
[340310393,1729020676106,-500.0,0.00024931,7]
[340310394,1729020676116,-582.94,0.00024931,7]
[340310395,1729020676125,-233.5757227,0.00024931,7]
[340310396,1729020676135,-500.0,0.00024931,7]
[340310397,1729020676144,-500.0,0.00024931,7]
[340310398,1729020676153,-582.94,0.00024931,7]
[340310399,1729020676163,-500.0,0.00024931,7]
[340310400,1729020676172,-582.94,0.00024931,7]
[340310401,1729020676181,-500.0,0.00024931,7]
[340310402,1729020676191,-500.0,0.00024931,7]
[340310403,1729020676200,-582.94,0.00024931,7]
[340310404,1729020676210,-500.0,0.00024931,7]
[340310405,1729020676219,-500.0,0.00024931,7]
[340310406,1729020676229,-582.94,0.00024931,7]
[340310407,1729020676238,-500.0,0.00024931,7]
[340310408,1729020676248,-500.0,0.00024931,7]
[340310409,1729020676258,-582.94,0.00024931,7]
[340310410,1729020676268,-500.0,0.00024931,7]
[340310411,1729020676277,-500.0,0.00024931,7]
[340310412,1729020676287,-307.64595515,0.00024931,7]
[340310413,1729020676296,-500.0,0.00024931,7]
[340310414,1729020676306,-582.94,0.00024931,7]
[340310415,1729020676315,-500.0,0.00024931,7]
[340310416,1729020676325,-583.07,0.00024931,7]
[340310417,1729020676334,-500.0,0.00024931,7]
[340310418,1729020676346,-500.0,0.00024931,7]
[340310419,1729020676356,-500.0,0.00024931,7]
[340310420,1729020676366,-500.0,0.00024931,7]
[340310421,1729020676375,-500.0,0.00024931,7]
[340310422,1729020676384,-500.0,0.00024931,7]
[340310423,1729020676393,-419.45413238,0.00024931,7]
[340310424,1729020676403,-153.906878,0.00024931,7]
[340310425,1729020676416,-153.906878,0.00024931,7]
[340310426,1729020676425,-153.906878,0.00024931,7]
[340310427,1729020676433,-153.906878,0.00024931,7]
[340310428,1729020676442,-153.906878,0.00024931,7]
[340310429,1729020676453,-153.906878,0.00024931,7]
[340310430,1729020676462,-153.906878,0.00024931,7]
[340310431,1729020676471,-153.906878,0.00024931,7]
[340310432,1729020676480,-8803.523102,0.00024931,7]
[340310433,1729020676491,-8803.523102,0.00024931,7]
[340310434,1729020676501,-8803.523102,0.00024931,7]
[340310435,1729020676510,-8803.523102,0.00024931,7]
[340310436,1729020676519,-8803.523102,0.00024931,7]
[340310437,1729020676528,-8803.523102,0.00024931,7]
[340310438,1729020676537,-8803.523102,0.00024931,7]
[340310439,1729020676546,-8803.523104,0.00024931,7]
[340310440,1729020676555,-213.645285,0.00024931,7]
[340310441,1729020676564,-213.645285,0.00024931,7]
[340310442,1729020676573,-213.645285,0.00024931,7]
[340310443,1729020676582,-213.645285,0.00024931,7]
[340310444,1729020676595,-213.645285,0.00024931,7]
[340310445,1729020676604,-213.645285,0.00024931,7]
[340310446,1729020676613,-213.645285,0.00024931,7]
[340310447,1729020676622,-213.645277,0.00024931,7]
[340310448,1729020676632,-242.252174,0.00024983,7]
[340310449,1729020676641,-242.252174,0.00024983,7]
[340310450,1729020676650,-19665.7968152,0.00024983,2]
[340310451,1729020676659,-23979.2877333,0.00024983,2]
[340310452,1729020676669,-28292.7786513,0.00024983,2]
[340310453,1729020676678,-32606.2695694,0.00024983,2]
[340310454,1729020676687,-36919.7604875,0.00024983,2]
[340310455,1729020676696,-151.0,0.00024983,7]
[340310456,1729020676706,-4877.4972721,0.00024983,2]
[340310457,1729020676715,-5841.1096448,0.00024983,2]
[340310458,1729020676724,-6804.7220175,0.00024983,2]
[340310459,1729020676734,-7768.3343902,0.00024983,2]
[340310460,1729020676743,-8731.9467628,0.00024983,2]
[340310461,1729020676752,-151.0,0.00024983,7]
[340310462,1729020676762,-9761.5869374,0.00024983,2]
[340310463,1729020676772,-11690.1140949,0.00024983,2]
[340310464,1729020676781,-13618.6412524,0.00024983,2]
[340310465,1729020676791,-15547.1684099,0.00024983,2]
[340310466,1729020676800,-17475.6955673,0.00024983,2]
[340310467,1729020676809,-153.906878,0.00024983,7]
[340310468,1729020676818,-153.906878,0.00024983,7]
[340310469,1729020676827,-6801.62118449,0.0002499,2]
[340310470,1729020676839,-2277.57861779,0.0002499,2]
[340310471,1729020676848,-151.0,0.0002499,7]
[340310472,1729020676857,-151.0,0.0002499,7]
[340310473,1729020676866,-151.0,0.0002499,7]
[340310474,1729020676875,-151.0,0.0002499,7]
[340310475,1729020676884,-278.345456,0.0002499,7]
[340310476,1729020676894,-278.345456,0.0002499,7]
[340310477,1729020676903,-151.0,0.0002499,7]
[340310478,1729020677002,-50000.0,0.00025,9]
[340310479,1729020677014,-50000.0,0.00025,10]
[340310480,1729020677023,-50000.0,0.00025,13]
[340310481,1729020677033,-50000.0,0.00025,16]
[340310482,1729020677042,-50000.0,0.00025,8]
[340310483,1729020677051,-14845075.44732378,0.00025,3]
[340310484,1729020677400,-926.66902096,0.00025,3]
[340310487,1729020790182,250.0,9.96e-05,2]
[340310496,1729021619018,10000.0,0.00027,60]
[340310499,1729021831678,-178.86,0.0001039,2]
[340310500,1729021831687,-300.0,0.00010489,2]
[340310501,1729021831697,-136.25,0.0001049,2]
[340310502,1729021831851,-488.20632831,0.0001049,2]
[340310506,1729021837784,-1000.0,0.0001049,2]
[340310507,1729021837846,-8754.07794172,0.0001049,2]
[340310508,1729021837855,-10058.38190634,0.0001049,2]
[340310509,1729021837864,-173.9643,0.0001049,2]
[340310510,1729021837873,-10788.60385195,0.0001049,2]
[340310511,1729021837885,-1197.47129571,0.0001049,2]
[340310512,1729021837895,-150.0,0.00010575,2]
[340310513,1729021837906,-150.0,0.00010589,2]
[340310514,1729021837916,-262.4105,0.0001059,2]
[340310515,1729021837927,-1062.04605863,0.0001059,2]
[340310516,1729021838016,-98937.95394137,0.0001059,2]
[340310517,1729021838026,-550.9499,0.0001059,2]
[340310518,1729021838035,-3098.898,0.0001059,2]
[340310519,1729021838044,-159.71,0.00010959,2]
[340310520,1729021838054,-499.99,0.00010959,2]
[340310521,1729021838063,-159.99,0.00010959,2]
[340310522,1729021838072,-1180.28,0.00011118,2]
[340310523,1729021838081,-689.87,0.00011118,2]
[340310524,1729021838090,-849.44,0.00011118,2]
[340310525,1729021838099,-299.99,0.00011118,2]
[340310526,1729021838109,-500.0,0.00011367,2]
[340310527,1729021838118,-300.0,0.00011532,2]
[340310528,1729021838128,-151.0,0.0001287,2]
[340310530,1729021838138,-151.0,0.0001287,2]
[340310532,1729021838147,-151.0,0.0001287,2]
[340310533,1729021838156,-1910.11,0.0001287,2]
[340310535,1729021838166,-189.855,0.00013718,2]
[340310537,1729021838175,-152.923802,0.000138,2]
[340310538,1729021838185,-151.0,0.000138,2]
[340310540,1729021838195,-151.0,0.000139,2]
[340310542,1729021838204,-151.0,0.00015,2]
[340310543,1729021838214,-555.0,0.00015192,2]
[340310544,1729021838224,-935.0,0.00015192,2]
[340310545,1729021838233,-360.0,0.000163,2]
[340310546,1729021838242,-1000.0,0.000163,2]
[340310547,1729021838251,-151.0,0.00018,2]
[340310548,1729021838261,-555.0,0.00018192,2]
[340310549,1729021838270,-935.0,0.00018192,2]
[340310550,1729021838280,-212.96,0.00018901,2]
[340310551,1729021838289,-151.0,0.000195,2]
[340310552,1729021838299,-7430.44,0.00020438,2]
[340310553,1729021838308,-7279.59614128,0.00020454,2]
[340310554,1729021838317,-250.0,0.00020812,2]
[340310555,1729021838326,-250.0,0.00020819,2]
[340310556,1729021838336,-151.657582,0.0002088,2]
[340310557,1729021838345,-7279.59614125,0.00020948,2]
[340310558,1729021838355,-1000.0,0.00020995,2]
[340310559,1729021838364,-250.0,0.00021015,2]
[340310560,1729021838373,-212.96,0.00021165,2]
[340310561,1729021838383,-7279.59614125,0.00021442,2]
[340310562,1729021838392,-7279.59614125,0.00021936,2]
[340310563,1729021838401,-1177.04,0.00022137,30]
[340310564,1729021838410,-7279.59614125,0.0002243,2]
[340310565,1729021838419,-3000.0,0.000225,2]
[340310566,1729021838428,-7279.59614125,0.00022924,2]
[340310567,1729021838437,-1156.8903,0.00023024,2]
[340310568,1729021838447,-7279.59614125,0.00023418,2]
[340310569,1729021838457,-212.96,0.00023429,2]
[340310570,1729021838468,-718.34,0.0002349,2]
[340310571,1729021838478,-1000.0,0.00023619,2]
[340310572,1729021838488,-7279.59614125,0.00023912,2]
[340310573,1729021838498,-40733.0,0.00023974,2]
[340310574,1729021838511,-535.12,0.00024315,2]
[340310575,1729021838520,-355.04,0.00024315,2]
[340310576,1729021838532,-305.99,0.00024315,2]
[340310577,1729021838541,-7279.59614125,0.00024406,2]
[340310578,1729021838550,-322.6225456,0.00024531,2]
[340310579,1729021838560,-16243.5075,0.00024548,2]
[340310580,1729021838570,-214.1138,0.000246,2]
[340310581,1729021838580,-375.0,0.00024657,2]
[340310582,1729021838592,-500.0,0.00024658,7]
[340310583,1729021838602,-1735.6049,0.0002469,2]
[340310584,1729021838613,-1000.0,0.000247,2]
[340310585,1729021838622,-7500.0,0.000247,2]
[340310586,1729021838633,-322.6225456,0.0002471,2]
[340310587,1729021838642,-150.0,0.00024717,2]
[340310588,1729021838651,-150.0,0.00024717,2]
[340310589,1729021838661,-150.0,0.00024719,2]
[340310590,1729021838671,-1177.04,0.00024721,30]
[340310591,1729021838681,-150.0,0.00024722,2]
[340310592,1729021838691,-150.0,0.00024723,2]
[340310593,1729021838701,-150.0,0.00024724,2]
[340310594,1729021838711,-150.0,0.00024727,2]
[340310595,1729021838723,-1448.4206,0.00024731,2]
[340310596,1729021838733,-150.0,0.00024731,2]
[340310597,1729021838742,-150.0,0.00024734,2]
[340310598,1729021838754,-150.0,0.00024735,2]
[340310599,1729021838764,-150.0,0.00024738,2]
[340310600,1729021838774,-150.0,0.0002474,2]
[340310601,1729021838783,-150.0,0.00024744,2]
[340310602,1729021838792,-150.0,0.00024745,2]
[340310603,1729021838801,-150.0,0.00024748,2]
[340310604,1729021838811,-150.0,0.00024751,2]
[340310605,1729021838820,-150.0,0.00024755,2]
[340310606,1729021838830,-150.0,0.00024763,2]
[340310607,1729021838839,-150.0,0.00024766,2]
[340310608,1729021838849,-150.0,0.00024766,2]
[340310609,1729021838859,-150.0,0.00024769,2]
[340310610,1729021838868,-150.0,0.0002477,2]
[340310611,1729021838877,-150.0,0.0002477,2]
[340310612,1729021838889,-150.0,0.00024772,2]
[340310613,1729021838898,-150.0,0.00024775,2]
[340310614,1729021838907,-150.0,0.00024779,2]
[340310615,1729021838917,-150.0,0.00024783,2]
[340310616,1729021838926,-150.0,0.00024783,2]
[340310617,1729021838935,-2620.77726843,0.00024789,2]
[340310618,1729021838944,-2222.31105359,0.0002479,2]
[340310619,1729021838954,-150.0,0.0002479,2]
[340310620,1729021838964,-98259.3431854,0.0002479,5]
[340310621,1729021838973,-150.0,0.00024794,2]
[340310622,1729021838983,-228.87052176,0.00024799,2]
[340310623,1729021838992,-79828.0009785,0.000248,2]
[340310624,1729021839141,-693.29470197,0.000248,2]
[340310625,1729021839152,-1058.32430776,0.000248,2]
[340310626,1729021839648,-334.39,0.000248,2]
[340310628,1729021839660,-319.196952,0.000248,2]
[340310629,1729021839671,-882.23183395,0.000248,2]
[340310630,1729021839682,-259.225,0.000248,2]
[340310631,1729021839708,-40738.66249894,0.000248,2]
[340310632,1729021839769,-1947.98619997,0.000248,2]
[340310633,1729021839780,-1244.09212786,0.000248,2]
[340310634,1729021839831,-1371.78734273,0.000248,2]
[340310635,1729021839842,-2502.88059726,0.000248,2]
[340310636,1729021839853,-4617.91216045,0.000248,2]
[340310637,1729021839864,-2480.88,0.000248,2]
[340310638,1729021839934,-5441.6051556,0.000248,2]
[340310639,1729021839945,-1493.21360508,0.000248,2]
[340310640,1729021839957,-54786.31653793,0.000248,2]
[340310641,1729021839966,-150.0,0.000248,2]
[340310642,1729021839975,-150.0,0.00024804,2]
[340310643,1729021839984,-150.0,0.00024805,2]
[340310644,1729021839993,-150.0,0.00024807,2]
[340310645,1729021840002,-150.0,0.00024813,2]
[340310646,1729021840011,-150.0,0.00024814,2]
[340310647,1729021840020,-150.0,0.00024816,2]
[340310649,1729021840029,-150.0,0.00024818,2]
[340310650,1729021840038,-424.17,0.00024826,2]
[340310652,1729021840047,-755.88,0.00024826,2]
[340310653,1729021840056,-424.17,0.00024826,2]
[340310655,1729021840066,-150.0,0.0002483,2]
[340310657,1729021840075,-150.0,0.0002483,2]
[340310658,1729021840083,-150.0,0.00024831,2]
[340310660,1729021840093,-150.0,0.00024835,2]
[340310662,1729021840102,-150.0,0.00024837,2]
[340310664,1729021840111,-150.0,0.00024839,2]
[340310666,1729021840120,-150.0,0.00024851,2]
[340310667,1729021840130,-150.0,0.00024852,2]
[340310669,1729021840140,-150.0,0.00024853,2]
[340310671,1729021840149,-150.0,0.00024855,2]
[340310673,1729021840159,-150.0,0.00024855,2]
[340310675,1729021840169,-150.0,0.00024859,2]
[340310676,1729021840178,-150.0,0.00024862,2]
[340310678,1729021840187,-150.0,0.00024867,2]
[340310680,1729021840197,-150.0,0.00024867,2]
[340310682,1729021840206,-150.0,0.0002487,2]
[340310683,1729021840216,-208.73231144,0.0002487,2]
[340310685,1729021840225,-8932.66756231,0.0002487,5]
[340310687,1729021840234,-150.0,0.00024876,2]
[340310689,1729021840244,-150.0,0.00024876,2]
[340310691,1729021840254,-150.0,0.00024878,2]
[340310693,1729021840263,-150.0,0.0002489,2]
[340310694,1729021840272,-8932.66756231,0.0002489,5]
[340310696,1729021840281,-150.0,0.00024898,2]
[340310698,1729021840291,-150.0,0.00024899,2]
[340310699,1729021840300,-167.72852134,0.000249,2]
[340310701,1729021840309,-658.0173,0.000249,2]
[340310703,1729021840318,-190.7,0.000249,2]
[340310705,1729021840328,-215.43448479,0.000249,2]
[340310706,1729021840336,-7279.59614125,0.000249,2]
[340310708,1729021840346,-8720.6226191,0.000249,2]
[340310710,1729021840355,-326.44232768,0.000249,2]
[340310712,1729021840365,-1112.4051229,0.000249,2]
[340310714,1729021840374,-338.5751271,0.000249,2]
[340310715,1729021840386,-181.75860523,0.000249,4]
[340310717,1729021840396,-150.0,0.00024902,2]
[340310719,1729021840407,-150.0,0.00024908,2]
[340310721,1729021840416,-150.0,0.00024911,2]
[340310723,1729021840425,-150.0,0.00024912,2]
[340310724,1729021840435,-150.0,0.00024913,2]
[340310726,1729021840445,-150.0,0.00024918,2]
[340310728,1729021840454,-150.0,0.00024924,2]
[340310730,1729021840463,-150.0,0.00024925,2]
[340310732,1729021840472,-150.0,0.00024925,2]
[340310733,1729021840482,-150.0,0.00024927,2]
[340310735,1729021840491,-150.0,0.00024927,2]
[340310737,1729021840501,-150.0,0.00024928,2]
[340310739,1729021840510,-150.0,0.00024929,2]
[340310740,1729021840518,-150.0,0.00024934,2]
[340310742,1729021840528,-150.0,0.00024936,2]
[340310744,1729021840537,-150.0,0.00024943,2]
[340310746,1729021840547,-150.0,0.00024945,2]
[340310748,1729021840557,-150.0,0.0002495,2]
[340310750,1729021840566,-150.0,0.0002495,2]
[340310751,1729021840576,-150.0,0.00024954,2]
[340310752,1729021840585,-150.0,0.00024959,2]
[340310753,1729021840595,-150.0,0.00024961,2]
[340310754,1729021840604,-150.0,0.00024962,2]
[340310755,1729021840614,-150.0,0.00024965,2]
[340310756,1729021840624,-150.0,0.00024967,2]
[340310757,1729021840635,-52303.46134734,0.00024969,5]
[340310758,1729021840647,-3162.60000008,0.00024969,5]
[340310759,1729021840657,-328.56454123,0.00024969,5]
[340310760,1729021840668,-24599.38217215,0.00024969,5]
[340310761,1729021840677,-59985.1264252,0.00024969,5]
[340310762,1729021840686,-150.0,0.0002497,2]
[340310763,1729021840695,-150.0,0.00024972,2]
[340310764,1729021840705,-150.0,0.00024978,2]
[340310765,1729021840714,-150.0,0.00024978,2]
[340310766,1729021840723,-150.0,0.00024978,2]
[340310767,1729021840732,-8932.66756231,0.0002498,5]
[340310768,1729021840741,-9997.52107086,0.0002498,5]
[340310769,1729021840753,-150.0,0.00024981,2]
[340310770,1729021840762,-150.0,0.00024984,2]
[340310771,1729021840771,-150.0,0.00024986,2]
[340310772,1729021840780,-150.0,0.00024986,2]
[340310773,1729021840791,-150.0,0.00024988,2]
[340310774,1729021840800,-150.0,0.00024988,2]
[340310775,1729021840810,-500.0,0.00024989,2]
[340310776,1729021840820,-384.77933365,0.00024989,2]
[340310777,1729021840829,-26798.0026869,0.0002499,5]
[340310778,1729021840838,-81145.19323596,0.0002499,5]
[340310792,1729021842664,-2682.488268,0.0002499,5]
[340310809,1729021842834,-39021.72939,0.0002499,5]
[340310810,1729021843012,-2437.72878687,0.0002499,5]
[340310812,1729021893945,550.0,0.0001,2]
[340310818,1729022475763,-1791.18955719,0.00010758,2]
[340310819,1729022475785,-1762.399701,0.00010803,2]
[340310820,1729022475807,-300.0,0.00010858,2]
[340310821,1729022475829,-300.0,0.00010858,2]
[340310822,1729022475851,-1024.41074181,0.00010859,2]
[340310833,1729023031766,-365.35210606,0.00010859,2]
[340310834,1729023031778,-1117.22136038,0.00010859,2]
[340310835,1729023031819,-3569.7731183,0.00010859,2]
[340310836,1729023031830,-545.44642781,0.00010859,2]
[340310837,1729023031874,-8166.70544564,0.00010859,2]
[340310838,1729023031884,-157.47,0.00010959,2]
[340310839,1729023031893,-600.0,0.00012,2]
[340310840,1729023031901,-474.09066093,0.00013785,2]
[340310841,1729023031912,-261.15578167,0.00013785,2]
[340310842,1729023031923,-517.85068696,0.00013785,2]
[340310843,1729023031934,-9734.17970487,0.00013785,2]
[340310844,1729023031945,-731.963917,0.00013785,2]
[340310845,1729023031956,-1799.75924857,0.00013785,2]
[340310846,1729023031965,-1083.0,0.00013785,2]
[340310847,1729023031974,-5047.064839,0.00013785,2]
[340310848,1729023031985,-435.419,0.00013785,2]
[340310849,1729023032005,-1182.37724129,0.00013785,2]
[340310850,1729023032015,-38941.30942268,0.00013785,2]
[340310851,1729023032025,-6177.0,0.00016,2]
[340310852,1729023032034,-150.0,0.00016115,2]
[340310854,1729023032043,-4725.84,0.00016116,2]
[340310856,1729023032052,-1083.0,0.00016785,2]
[340310857,1729023032062,-499.99,0.0001726,2]
[340310858,1729023032074,-181.01,0.00019074,2]
[340310859,1729023032083,-360.0,0.000197,2]
[340310860,1729023032092,-1000.0,0.000197,2]
[340310861,1729023032104,-1082.0,0.00019785,2]
[340310862,1729023032116,-150.0,0.00020904,2]
[340310863,1729023032125,-500.0,0.00021073,2]
[340310864,1729023032135,-490.2962108,0.00021092,2]
[340310865,1729023032144,-70266.57626791,0.00021092,2]
[340310870,1729023038128,-29733.42373209,0.00021092,2]
[340310871,1729023038139,-250.0,0.0002116,2]
[340310872,1729023038148,-181.01,0.00021338,2]
[340310873,1729023038158,-490.2962108,0.00021515,2]
[340310874,1729023038168,-490.2962108,0.00021938,2]
[340310875,1729023038178,-174.0,0.00022,2]
[340310876,1729023038187,-1059.33,0.00022137,30]
[340310877,1729023038196,-200.0,0.00022142,2]
[340310878,1729023038206,-400.0,0.00022181,2]
[340310879,1729023038215,-250.0,0.00022198,2]
[340310880,1729023038225,-490.2962108,0.00022361,2]
[340310881,1729023038234,-150.3,0.00022379,2]
[340310882,1729023038243,-500.0,0.00022383,2]
[340310883,1729023038254,-4079.03,0.00022428,2]
[340310884,1729023038263,-250.0,0.00022684,2]
[340310885,1729023038272,-490.2962108,0.00022784,2]
[340310886,1729023038282,-250.0,0.00023,10]
[340310887,1729023038291,-2751.0,0.00023009,2]
[340310888,1729023038301,-174.0,0.00023014,2]
[340310889,1729023038310,-1189.88234368,0.00023061,4]
[340310890,1729023038320,-490.2962108,0.00023208,2]
[340310891,1729023038329,-180.0,0.00023268,2]